[Event "SixDays Budapest January-IMB 2023"]
[Site "Budapest"]
[Date "2023.01.24"]
[Round "3.4"]
[White "Gatineau, Yovann"]
[Black "Papp, Levente"]
[Result "1-0"]
[ECO "E10"]
[WhiteElo "2354"]
[BlackElo "2391"]
[Annotator "TA"]
[PlyCount "49"]
[EventDate "2023.01.23"]
[EventType "tourn"]
[EventCountry "HUN"]
[SourceTitle "playchess.com"]
[Source "ChessBase"]
[SourceQuality "1"]
[TimeControl "5400+30"]

{[%evp 9,49,21,31,27,29,34,31,27,17,18,16,23,29,22,23,0,66,59,74,25,143,140,179,40,37,52,46,15,15,0,24,-56,227,233,220,223,227,239,227,218,1352,1357]} 1. d4 {[%emt 0:04:00]} e6 {[%emt 0:00:50]} 2. Nf3 {[%emt 0:00:37]} Nf6 {[%emt 0:00:19]} 3. c4 {[%emt 0:00:05]} c5 {[%emt 0:02:39]} 4. d5 {[%emt 0:01:36]} b5 {[%emt 0:00:08]} 5. e4 {[%emt 0:00:07]} Nxe4 {[%emt 0:00:37]} 6. Bd3 {[%emt 0:00:08] E10: Blumenfeld Gambit.} Nf6 {[%emt 0:00:17]} 7. Nc3 {[%emt 0:04:34]} (7. cxb5 Nxd5 8. O-O d6 $15) 7... bxc4 {[%emt 0:06:43]} 8. Bxc4 {[%emt 0:00:08] White is slightly better.} Ba6 {[%emt 0:00:04]} 9. Bxa6 {[%emt 0:02:55]} Nxa6 {[%emt 0:00:41]} 10. O-O {[%emt 0:00:23]} Qc8 {[%emt 0:00:49] 10...Nc7 is vanishing.} 11. Bg5 {[%emt 0:04:56]} Be7 {[%emt 0:02:33]} 12. Bxf6 {[%emt 0:11:00] [#]} (12. dxe6 $5 fxe6 13. Ne5 $11) 12... gxf6 $146 {[%emt 0:01:10]} (12... Bxf6 $11 13. Ne4 O-O) ({Predecessor:} 12... Bxf6 13. Ne4 O-O 14. Nxf6+ gxf6 15. Nd2 exd5 16. Qh5 Qc6 17. Rae1 Kh8 18. Nf3 Nc7 {0-1 Stefansson,V (2359)-Lomasov,S (2525) Arandjelovac Akva Gold GM2 2021 (8)}) 13. Re1 {[%emt 0:07:39]} Qb7 {[%emt 0:33:33] Black is weak on the light squares} 14. Qa4 {[%emt 0:05:02]} ({White should play} 14. Qd2 $16) 14... O-O {[%emt 0:05:10]} (14... Rg8 $11 {keeps the balance.}) 15. Rad1 $1 $36 {[%emt 0:05:04][%mdl 2048] Hoping for dxe6. Black is under strong pressure. White is more active.} Rae8 {[%emt 0:05:47]} (15... Qxb2 $2 16. Nb5 Nb4 17. Rd2 $18 (17. Nxa7 $2 Nxd5 18. Rxd5 {[%mdl 64] Remove Defender} exd5 $19) (17. Nxa7 $2 Nxd5 18. Rxd5 exd5 $19)) 16. dxe6 {[%emt 0:16:29]} (16. Re3 $1 $18) 16... dxe6 $14 {[%emt 0:00:07]} 17. Rd7 $1 {[%emt 0:00:33] Inhibits Rd8.} Qxb2 {[%emt 0:06:26]} 18. Nd1 {[%emt 0:10:30][%cal Bc3d1,Bd1e3,Be3g4,Bg4h6][%mdl 32]} (18. Re3 $5 {[%cal Ra4a6]}) 18... Qb6 {[%emt 0:01:21][%cal Oc5c4]} 19. Qh4 {[%emt 0:07:13][%mdl 1024] aiming for Nc3. White has compensation.} Qb1 {[%emt 0:11:56]} 20. Nd2 {[%emt 0:06:09]} (20. Rxa7 Nb4 $11) (20. Ne3 $11 Qb4 21. Ng4 (21. Rxa7 Qxh4 22. Nxh4 Nb4 $17)) 20... Qf5 $2 {[%emt 0:04:49][%mdl 8192] [#] Black cannot hold the game after this.} (20... Qg6 $15) 21. Re3 $1 $18 {[%emt 0:07:27] Strongly threatening Rg3+.} (21. Rxa7 Nb4 $15) 21... Kh8 {[%emt 0:01:32] [#] White must now prevent ...Nb8.} 22. Rg3 $1 {[%emt 0:00:27] And now Ne3 would win.} Rg8 {[%emt 0:04:28]} 23. Ne3 {[%emt 0:00:13]} ({Worse is} 23. Rxa7 Rd8 24. Rxg8+ (24. Rxe7 Rxd2 25. Rxg8+ Kxg8 $15) 24... Kxg8 $15) 23... Qe5 {[%emt 0:00:01]} 24. Ng4 {[%emt 0:01:51]} ({And not} 24. Rxa7 Nc7 $11) 24... Qg5 {[%emt 0:03:15]} (24... Qa1+ 25. Nf1 f5 26. Rxe7 fxg4) 25. Nh6 {[%emt 0:00:28] Weighted Error Value: White=0.17 (very precise) /Black=0.38} 1-0

[Event "SixDays Budapest January-IMB 2023"]
[Site "Budapest"]
[Date "2023.01.24"]
[Round "3.5"]
[White "Apol, Luitjen Akselsson"]
[Black "To, Nhat Minh"]
[Result "0-1"]
[ECO "B40"]
[WhiteElo "2215"]
[BlackElo "2335"]
[Annotator "TA"]
[PlyCount "88"]
[EventDate "2023.01.23"]
[EventType "tourn"]
[EventCountry "HUN"]
[SourceTitle "playchess.com"]
[Source "ChessBase"]
[SourceQuality "1"]
[TimeControl "5400+30"]

{[%evp 9,88,2,19,15,14,2,9,0,0,0,0,0,0,0,0,0,12,-4,-10,-13,0,0,0,0,0,-45,0,-32,-28,-55,-3,-25,-24,-1,10,-27,-10,-20,-19,-18,0,0,0,0,34,34,44,48,69,70,70,0,69,0,70,-6,-6,-6,-6,-6,-6,-6,-6,-6,-6,-6,-6,-6,0,-13,-6,-6,0,-6,0,-14,-33,-158,-151,-196,-22]} 1. e4 {[%emt 0:00:10]} c5 {[%emt 0:00:23]} 2. Nf3 {[%emt 0:00:41]} e6 {[%emt 0:00:06]} 3. g3 {[%emt 0:05:44]} Nc6 {[%emt 0:00:31]} 4. Bg2 {[%emt 0:00:20]} Nf6 {[%emt 0:00:10]} 5. Qe2 {[%emt 0:00:19]} e5 {[%emt 0:00:10]} 6. O-O {[%emt 0:00:36] B40: Sicilian: 2...e6, Unusual lines.} Be7 {[%emt 0:00:05]} 7. c3 {[%emt 0:01:09][%cal Od2d4]} O-O {[%emt 0:00:18]} 8. d3 {[%emt 0:00:39] The position is equal.} Re8 {[%emt 0:01:21]} 9. Na3 {[%emt 0:00:31]} h6 {[%emt 0:04:31]} 10. Nc4 {[%emt 0:01:27]} d6 {[%emt 0:03:41]} 11. Ne3 {[%emt 0:01:42]} Be6 {[%emt 0:04:16]} 12. Nh4 {[%emt 0:00:35]} Bf8 {[%emt 0:06:17] [#]} 13. f4 $146 {[%emt 0:02:27]} ({Predecessor:} 13. Nd5 Bxd5 14. exd5 Ne7 15. c4 g5 16. Nf3 Ng6 17. Nd2 Rb8 18. Bh3 b5 19. Ne4 {1-0 Artemiev,V (2691)-Harikrishna,P (2744) Huaian IMSA blitz 2nd 2017 (9.6)}) 13... exf4 {[%emt 0:00:54]} 14. gxf4 {[%emt 0:00:11] [#]} (14. Rxf4 g5 15. Rxf6 Qxf6 $17) 14... Nxe4 $1 {[%emt 0:02:31][%mdl 64] Discovered Attack} 15. dxe4 {[%emt 0:00:29]} Qxh4 {[%emt 0:00:08]} 16. Bd2 {[%emt 0:00:59]} Qd8 {[%emt 0:11:24]} 17. Kh1 {[%emt 0:09:15]} f6 {[%emt 0:09:35][%cal Od6d5]} 18. Qf3 {[%emt 0:11:03]} Kh8 {[%emt 0:04:11]} 19. Qg3 {[%emt 0:01:54]} a5 {[%emt 0:10:45]} (19... Rb8 $15) 20. Rf2 {[%emt 0:10:37]} Bg8 {[%emt 0:05:33]} 21. Bf3 {[%emt 0:03:23]} Bh7 {[%emt 0:00:42]} 22. f5 {[%emt 0:03:43]} Ne5 {[%emt 0:00:39] White must now prevent ...Nxf3.} 23. Nd5 {[%emt 0:05:29]} Nxf3 {[%emt 0:12:59]} 24. Qxf3 {[%emt 0:00:09]} b5 {[%emt 0:00:26]} 25. Rg1 {[%emt 0:04:19]} Qd7 {[%emt 0:05:02]} 26. c4 {[%emt 0:23:16]} bxc4 {[%emt 0:01:44]} 27. Bc3 {[%emt 0:00:31][%cal Od5f6] Hoping for Nxf6!} Qf7 {[%emt 0:05:55]} 28. Rfg2 {[%emt 0:00:49][%mdl 1024] White has compensation.} Ra7 {[%emt 0:00:47]} 29. Rg4 {[%emt 0:04:48]} Rae7 {[%emt 0:00:38][%cal Oe7e4] ...Rxe4! is the strong threat.} 30. Rd1 {[%emt 0:04:28]} (30. Bxa5 $2 Rxe4 31. Rxe4 Qxd5 $19) (30. Qg2 $14) 30... Re5 {[%emt 0:03:37]} 31. a3 {[%emt 0:02:37]} (31. Bxa5 g6 32. fxg6 Bxg6 $11) (31. Bxe5 $14 Rxe5 32. Qg2) 31... Qb7 {[%emt 0:01:21]} 32. Qg2 {[%emt 0:00:55] [#]} (32. Bxe5 $14 dxe5 33. Rg2) 32... Rxd5 $1 $11 {[%emt 0:02:47]} 33. Rxd5 {[%emt 0:00:27]} a4 {[%emt 0:01:44]} 34. h3 {[%emt 0:00:26]} Qf7 {[%emt 0:01:03]} 35. Kh2 {[%emt 0:00:35]} Rb8 {[%emt 0:01:11]} 36. Qe2 {[%emt 0:00:47]} Bg8 {[%emt 0:00:15]} 37. Rd1 {[%emt 0:00:53]} Re8 {[%emt 0:00:44][%cal Od6d5] aiming for ...d5!} 38. Qg2 {[%emt 0:00:33]} Bh7 {[%emt 0:00:26]} 39. Qc2 {[%emt 0:00:29]} Qb7 {[%emt 0:00:31]} 40. Qg2 {[%emt 0:00:29]} (40. Qxa4 Rxe4 41. Rxe4 Qxe4) 40... Qf7 {[%emt 0:00:27]} 41. Rd5 {[%emt 0:00:31]} Qb7 {[%emt 0:00:33]} 42. Qc2 {[%emt 0:00:30]} Bg8 {[%emt 0:00:27]} 43. Rd2 {[%emt 0:00:28]} (43. Qxa4 $15 Rxe4 44. Rxe4 Bxd5 45. Re8) 43... d5 $17 {[%emt 0:00:25]} 44. exd5 {[%emt 0:00:31]} Re1 $2 {[%emt 0:00:43][%mdl 32768] Repels Qd1.   Weighted Error Value: White=0.16 (very precise) /Black=0.11 (very precise) . Loss on time!?} (44... Bxd5 $19 45. Re2 Rxe2+ 46. Qxe2 Qd7) 0-1

[Event "SixDays Budapest January-IMB 2023"]
[Site "Budapest"]
[Date "2023.01.25"]
[Round "4.1"]
[White "Daroczi, Donat"]
[Black "To, Nhat Minh"]
[Result "1/2-1/2"]
[ECO "C48"]
[WhiteElo "2148"]
[BlackElo "2335"]
[Annotator "TA"]
[PlyCount "32"]
[EventDate "2023.01.23"]
[EventType "tourn"]
[EventCountry "HUN"]
[SourceTitle "playchess.com"]
[Source "ChessBase"]
[SourceQuality "1"]
[TimeControl "5400+30"]

{[%evp 11,19,0,0,0,0,12,8,6,8,0]} 1. e4 {[%emt 0:00:03]} e5 {[%emt 0:00:07]} 2. Nf3 {[%emt 0:00:09]} Nf6 {[%emt 0:00:06]} 3. Nc3 {[%emt 0:01:26]} Nc6 {[%emt 0:00:05]} 4. Bb5 {[%emt 0:00:07]} Nd4 {[%emt 0:00:03]} 5. Bc4 {[%emt 0:00:07]} Bc5 {[%emt 0:00:03]} 6. d3 {[%emt 0:00:10]} d6 {[%emt 0:00:46] The position is equal.} 7. Na4 {[%emt 0:00:30] C48: Four Knights: 4 Bb5, replies other than 4...Bb4.} b5 {[%emt 0:00:46]} 8. Nxd4 {[%emt 0:00:46]} bxc4 {[%emt 0:00:13]} 9. Nf5 {[%emt 0:00:44]} Bxf5 {[%emt 0:00:15]} 10. exf5 {[%emt 0:00:30] [#] Not much happened in this game.   Weighted Error Value: White=0.00 (flawless) /Black=0.00 (flawless)} {Predecessor:} cxd3 $146 11. Nxc5 dxc5 12. cxd3 O-O 13. O-O Qd7 14. Qf3 Rfd8 15. Be3 Qxd3 16. Rac1 h6 {½-½ Kollars,D (2635)-Nepomniachtchi,I (2773) Titled Tuesday intern op 22 Mar Early blitz 2022 (8)} 1/2-1/2

[Event "SixDays Budapest January-IMB 2023"]
[Site "Budapest"]
[Date "2023.01.25"]
[Round "4.2"]
[White "Papp, Levente"]
[Black "Apol, Luitjen Akselsson"]
[Result "1-0"]
[ECO "A05"]
[WhiteElo "2391"]
[BlackElo "2215"]
[Annotator "TA"]
[PlyCount "81"]
[EventDate "2023.01.23"]
[EventType "tourn"]
[EventCountry "HUN"]
[SourceTitle "playchess.com"]
[Source "ChessBase"]
[SourceQuality "1"]
[TimeControl "5400+30"]

{[%evp 19,81,7,21,-2,0,0,68,59,101,95,112,96,129,83,107,28,34,15,12,5,23,23,32,44,47,35,45,52,87,93,100,94,87,95,109,108,108,90,115,120,100,122,141,122,129,130,133,125,125,116,115,101,105,101,346,372,369,366,358,335,419,418,397,395]} 1. Nf3 {[%emt 0:00:03]} Nf6 {[%emt 0:03:03]} 2. g3 {[%emt 0:00:55]} g6 {[%emt 0:00:24]} 3. b3 {[%emt 0:00:18]} Bg7 {[%emt 0:00:32]} 4. Bb2 {[%emt 0:00:07]} O-O {[%emt 0:01:14]} 5. Bg2 {[%emt 0:00:05]} c5 {[%emt 0:03:17]} 6. c4 {[%emt 0:00:17]} d6 {[%emt 0:07:25]} 7. d4 {[%emt 0:00:15]} cxd4 {[%emt 0:00:06]} 8. Nxd4 {[%emt 0:00:09]} d5 {[%emt 0:00:05]} 9. O-O {[%emt 0:01:33]} dxc4 {[%emt 0:00:11]} 10. bxc4 {[%emt 0:00:12]} Qb6 {[%emt 0:00:19]} 11. Qb3 {[%emt 0:05:26][%cal Ob1c3] A49: 1 d4 Nf6 2 Nf3 g6 3 g3: Anti-King's Indian systems.} Nfd7 {[%emt 0:00:24]} 12. e3 {[%emt 0:18:37] 12.Rd1 is more advanced technology.} Na6 {[%emt 0:03:41]} (12... e5 $11 13. Nc2 Nc5) 13. Nc3 $14 {[%emt 0:02:21] White is slightly better.} Nac5 {[%emt 0:10:25]} 14. Qc2 {[%emt 0:01:45]} e6 {[%emt 0:07:28]} 15. Rab1 {[%emt 0:09:52]} a6 {[%emt 0:03:01]} 16. Ne4 {[%emt 0:06:53]} (16. Nb3 $142) 16... Qc7 $16 {[%emt 0:03:56] [#]} 17. Nb3 $146 {[%emt 0:04:04]} ({Better is} 17. Ba3 $16) ({Predecessor:} 17. Ba3 Re8 18. Rfd1 Nxe4 19. Bxe4 Nc5 20. Bxc5 Qxc5 21. Qa4 Re7 22. Nb3 Qc7 23. Na5 Ra7 24. c5 f5 25. Bg2 Bc3 26. Nc4 Qxc5 27. Rd8+ Kg7 28. Nb6 {1-0 Burmakin,V (2505)-Frayna,J (2235) Barcelona Sant Marti op-A 19th 2017 (3)}) 17... Nxe4 $1 $11 {[%emt 0:03:19]} 18. Bxg7 {[%emt 0:12:47]} Kxg7 {[%emt 0:00:09]} 19. Qxe4 {[%emt 0:03:20][%cal Oc4c5]} e5 {[%emt 0:05:26]} (19... Nf6 $5 {[%cal Rf6e4]} 20. Qd4 Bd7 $11) 20. Qd5 {[%emt 0:01:57]} Rb8 {[%emt 0:10:00]} 21. Rfd1 {[%emt 0:04:36]} Nf6 {[%emt 0:10:08]} 22. Qc5 {[%emt 0:02:58]} Qxc5 {[%emt 0:00:57]} 23. Nxc5 {[%emt 0:00:02][%cal Bb3c5,Bc5b7,Bb7d6][%mdl 32]} Bg4 {[%emt 0:07:25] [#]} 24. Rdc1 {[%emt 0:01:54]} Rfc8 {[%emt 0:06:26]} 25. Rxb7 {[%emt 0:03:58]} Rxb7 {[%emt 0:00:27]} 26. Nxb7 {[%emt 0:00:02]} Be6 {[%emt 0:01:47] [#]} 27. c5 $1 {[%emt 0:08:38]} Bxa2 {[%emt 0:01:26]} 28. Nd6 {[%emt 0:00:58]} Rc7 {[%emt 0:01:33]} 29. Ra1 {[%emt 0:00:33] White is more active.} Be6 {[%emt 0:01:41]} 30. c6 {[%emt 0:00:06]} ({But not} 30. Rxa6 $6 Rxc5 31. Rc6 Nd7 $11) 30... e4 {[%emt 0:03:36]} 31. Bxe4 {[%emt 0:01:10]} Kf8 {[%emt 0:00:19]} 32. Bg2 {[%emt 0:02:52]} Ke7 {[%emt 0:00:33]} 33. Nb7 {[%emt 0:00:59]} Bc4 {[%emt 0:03:01]} 34. Nc5 {[%emt 0:01:32]} Ne8 {[%emt 0:00:39]} 35. Ra4 {[%emt 0:02:14]} ({Weaker is} 35. Nxa6 Ra7 36. Ra4 (36. Bf1 Bxf1 37. Kxf1 Nc7 $17) 36... Bxa6 $17) 35... Bb5 {[%emt 0:01:20][%csl LRa4,LRc6]} 36. Re4+ {[%emt 0:00:24]} Kf8 $2 {[%emt 0:00:50] Loses the game.} (36... Kd6 $16 {might work better.}) 37. Nd7+ $18 {[%emt 0:00:07]} Rxd7 38. cxd7 {[%emt 0:00:01]} Bxd7 {[%emt 0:00:11]} 39. Bf1 {[%emt 0:01:17]} a5 {[%emt 0:01:20]} 40. Re5 {[%emt 0:00:29]} a4 {[%emt 0:00:08]} 41. Bb5 {[%emt 0:00:07] Weighted Error Value: White=0.09 (flawless) /Black=0.27 (precise)} 1-0

[Event "SixDays Budapest January-IMB 2023"]
[Site "Budapest"]
[Date "2023.01.25"]
[Round "4.3"]
[White "Jakab, Attila"]
[Black "Gatineau, Yovann"]
[Result "1-0"]
[ECO "D35"]
[WhiteElo "2308"]
[BlackElo "2354"]
[Annotator "TA"]
[PlyCount "87"]
[EventDate "2023.01.23"]
[EventType "tourn"]
[EventCountry "HUN"]
[SourceTitle "playchess.com"]
[Source "ChessBase"]
[SourceQuality "1"]
[TimeControl "5400+30"]

{[%evp 11,87,37,29,15,19,25,14,0,10,11,25,17,30,22,18,25,27,5,0,8,14,0,0,-20,-12,-23,0,-12,0,-57,-40,-65,0,-28,31,30,41,30,43,16,32,24,61,-2,48,52,50,25,18,27,110,0,57,76,54,0,0,0,0,0,435,414,268,181,1831,1591,5837,6732,12833,6011,29988,29989,29989,29990,29990,29991,29991,29992]} 1. d4 {[%emt 0:18:05]} d5 {[%emt 0:00:08]} 2. c4 {[%emt 0:00:04]} e6 {[%emt 0:00:06]} 3. Nc3 {[%emt 0:00:05]} Nf6 {[%emt 0:00:06]} 4. cxd5 {[%emt 0:00:05]} exd5 {[%emt 0:00:07]} 5. Bg5 {[%emt 0:00:06]} Bb4 {[%emt 0:00:06]} 6. e3 {[%emt 0:01:25]} h6 {[%emt 0:00:12]} 7. Bxf6 {[%emt 0:00:27] D35: Queen's Gambit Declined: Exchange Variation.} Qxf6 {[%emt 0:00:08]} 8. Qa4+ {[%emt 0:01:41]} Nc6 {[%emt 0:00:07]} 9. Bb5 {[%emt 0:00:09] The position is equal.} Bxc3+ {[%emt 0:04:49]} 10. bxc3 {[%emt 0:00:05]} Bd7 {[%emt 0:00:26]} 11. Ne2 {[%emt 0:01:56]} O-O {[%emt 0:04:39]} 12. O-O {[%emt 0:01:25]} a6 {[%emt 0:00:57]} 13. Bd3 {[%emt 0:00:16] [#]} Qd6 $146 {[%emt 0:02:37]} ({Predecessor:} 13... Bf5 14. Bxf5 Qxf5 15. Ng3 Qe6 16. Rfe1 b5 17. Qc2 Rad8 18. a4 b4 19. a5 Rb8 {1-0 Hicker,H (1979)-Gradinger,A (1814) North Austria-ch Seniors 65 2017 (6)}) 14. Rab1 {[%emt 0:01:10]} b5 {[%emt 0:03:11]} 15. Qc2 {[%emt 0:00:07]} Ne7 {[%emt 0:02:09]} 16. Qb2 {[%emt 0:04:12]} Rfc8 {[%emt 0:03:16]} 17. f3 {[%emt 0:03:43]} c5 {[%emt 0:04:18]} 18. e4 {[%emt 0:00:36]} Ra7 {[%emt 0:18:34]} 19. Kh1 {[%emt 0:08:33]} Rac7 {[%emt 0:05:46]} 20. Rbd1 {[%emt 0:03:07]} (20. Qd2 $11) 20... cxd4 $1 $15 {[%emt 0:06:55]} 21. cxd4 {[%emt 0:00:38]} Nc6 {[%emt 0:01:08]} (21... b4 $1 $15) 22. a3 {[%emt 0:09:41]} f6 {[%emt 0:09:18]} ({Better is} 22... b4 $11) 23. Bb1 {[%emt 0:06:21][%cal Bd3b1,Bb1a2,Ba2d5][%mdl 32]} Ne7 {[%emt 0:06:19]} 24. e5 {[%emt 0:05:46]} Qc6 {[%emt 0:01:36]} 25. Nf4 {[%emt 0:03:34]} Bf5 {[%emt 0:06:36]} 26. Ba2 {[%emt 0:10:42]} Kh8 {[%emt 0:02:04]} 27. h3 {[%emt 0:01:02] White is more active.} (27. Rfe1 $14) 27... Qc3 {[%emt 0:04:27]} (27... g5 $11 28. Nh5 Qe6) 28. Qxc3 $14 {[%emt 0:03:49]} Rxc3 {[%emt 0:00:01]} 29. Nxd5 {[%emt 0:00:19]} Nxd5 {[%emt 0:00:35]} 30. Bxd5 {[%emt 0:00:05]} Rxa3 {[%emt 0:01:15]} (30... Rd8 $11 {keeps the balance.} 31. Bf7 fxe5 32. dxe5 Rxd1 33. Rxd1 g5) 31. g4 {[%emt 0:04:57]} (31. e6 $16) 31... Bg6 {[%emt 0:03:53]} ({Black should play} 31... Bc2 $1 $11 32. Rc1 fxe5 33. dxe5 Rc5) 32. e6 {[%emt 0:02:39]} b4 {[%emt 0:02:02]} 33. Be4 {[%emt 0:06:10] Against b3} (33. Kg2 $14) 33... Bxe4 $11 {[%emt 0:03:34]} 34. fxe4 {And now Kg2 would win.} Rxh3+ {[%emt 0:02:19][%mdl 4096] Endgame KRR-KRR} 35. Kg2 {[%emt 0:00:12]} Re3 {[%emt 0:00:08][%mdl 8192]} (35... Rcc3 $1 $11) 36. d5 $18 {[%emt 0:01:35][%cal Bd4d5,Bd5d6,Bd6d7][%mdl 32]} Rxe4 {[%emt 0:03:24]} 37. Kf3 {[%emt 0:00:51]} Re5 {[%emt 0:00:33] [#]} (37... Rcc4) 38. Rfe1 $1 {[%emt 0:02:32]} Rxe1 {[%emt 0:01:08]} 39. Rxe1 {[%emt 0:00:04] KR-KR} Kg8 {[%emt 0:00:28]} 40. d6 {[%emt 0:00:20] Intending d7 and mate.} Kf8 {[%emt 0:00:30]} 41. d7 {[%emt 0:00:18] White mates.} Rc3+ {[%emt 0:00:16]} 42. Kf2 {[%emt 0:00:47][%cal Rd7d8]} Ke7 {[%emt 0:00:42]} 43. Rd1 {[%emt 0:00:06]} Rc2+ {[%emt 0:00:33]} 44. Kf1 {Weighted Error Value: White=0.20 (precise) /Black=0.42} 1-0

[Event "SixDays Budapest January-IMB 2023"]
[Site "Budapest"]
[Date "2023.01.25"]
[Round "4.4"]
[White "Farkas, Gabor"]
[Black "La Barbera, Manfredi"]
[Result "1-0"]
[ECO "A22"]
[WhiteElo "2321"]
[BlackElo "1961"]
[Annotator "TA"]
[PlyCount "49"]
[EventDate "2023.01.23"]
[EventType "tourn"]
[EventCountry "HUN"]
[SourceTitle "playchess.com"]
[Source "ChessBase"]
[SourceQuality "1"]
[TimeControl "5400+30"]

{[%evp 9,49,21,20,18,8,-6,44,60,64,53,110,0,0,-18,0,0,0,-37,-5,-74,-25,-33,23,19,20,22,29,43,45,22,43,29,381,356,407,395,520,454,703,672,1060,1043]} 1. c4 {[%emt 0:00:04] Moradiabadi,Elshan} e5 {[%emt 0:00:09]} 2. Nc3 {[%emt 0:00:13]} Nf6 {[%emt 0:00:07]} 3. g3 {[%emt 0:00:48]} c6 {[%emt 0:00:13]} 4. Nf3 {[%emt 0:01:45]} e4 {[%emt 0:00:12]} 5. Nd4 {[%emt 0:01:01]} Qb6 {[%emt 0:00:07]} 6. Nc2 {[%emt 0:06:06] A23: English Opening: 1...e5 2 Nc3 Nf6 3 g3 c6.} d5 {[%emt 0:11:06]} 7. Bg2 {[%emt 0:06:38] [#]} h5 $146 {[%emt 0:22:22]} (7... dxc4 $11 8. O-O Na6) ({Predecessor:} 7... dxc4 8. O-O Be6 9. Nxe4 Nxe4 10. Bxe4 Nd7 11. Bg2 h5 12. d4 cxd3 13. Qxd3 O-O-O {1-0 Jobava,B (2713)-Mastrovasilis,D (2580) EU-ch 18th Minsk 2017 (8)}) 8. cxd5 $14 {[%emt 0:03:00] White is slightly better.} cxd5 {[%emt 0:00:15]} 9. d3 {[%emt 0:00:47][%cal Rd3e4]} Bc5 {[%emt 0:08:34]} (9... Nc6 $14) 10. d4 {[%emt 0:08:28]} (10. O-O $16) 10... Be7 $11 {[%emt 0:07:09]} 11. h4 {[%emt 0:21:03]} Nc6 {[%emt 0:05:51]} 12. O-O {[%emt 0:01:48]} Be6 {[%emt 0:01:50]} 13. a3 {[%emt 0:01:40]} Na5 {[%emt 0:07:23]} 14. b4 {[%emt 0:02:05]} (14. Nb4 $11 {keeps the balance.}) 14... Nc4 {[%emt 0:02:32]} (14... Nb3 $17 15. Rb1 Nxc1 16. Qxc1 O-O) 15. Ne3 {[%emt 0:01:44][%cal Bc2e3,Be3g2,Bg2f4][%mdl 32]} Rc8 {[%emt 0:03:01]} ({Better is} 15... Nd6 $15) 16. Na4 $1 {[%emt 0:01:25]} Qb5 {[%emt 0:07:29]} 17. Nc5 {[%emt 0:02:01]} b6 {[%emt 0:02:45]} 18. Nxe6 {[%emt 0:00:29]} fxe6 {[%emt 0:00:02]} 19. Bh3 {[%emt 0:00:44]} Qd7 {[%emt 0:01:03]} 20. Ng2 {[%emt 0:01:17] Strongly threatening Nf4.} Ng4 $2 {[%emt 0:05:07][%mdl 8192] [#] This costs Black the game.} (20... Bd6 $1 $11 {and Black is okay.}) 21. f3 $1 $18 {[%emt 0:03:49]} Nh6 {[%emt 0:04:31]} 22. Nf4 $1 {[%emt 0:04:39][%csl LRe6,LRh5]} Rc6 {[%emt 0:00:37]} 23. fxe4 {[%emt 0:02:00] White is clearly winning.} ({Weaker is} 23. Nxh5 e3 $16) 23... dxe4 {[%emt 0:00:23]} (23... Ng4 $142 24. b5 Rc7 25. Nxh5 {[%mdl 64] Remove Defender} Rxh5) 24. d5 {[%emt 0:00:19][%cal Bd4d5,Bd5c6][%mdl 32]} Bf6 {[%emt 0:01:40]} 25. dxc6 {[%emt 0:01:39] Weighted Error Value: White=0.18 (very precise) /Black=0.65} 1-0